[Event "Titled Tuesday Blitz February 15 Early 2022"]
[White "Petrova, Irina"]
[Black "Chincholimath, Halsagar"]
[WhiteFideId "14124122"]
[BlackFideId "5022487"]
[WhiteElo "1988"]
[BlackElo "1737"]
[Result "1-0"]
[Round "04"]
[TimeControl "180+1"]
[Date "2022.02.15"]
[WhiteClock "0:00:17"]
[BlackClock "0:00:06"]

1. e4 {[%clk 0:03:00]}  c6 {[%clk 0:02:54]} 2. d4 {[%clk 0:03:00]}  d5 {[%clk 0:02:54]} 3. e5 {[%clk 0:03:00]}  Bf5 {[%clk 0:02:53]} 4. h4 {[%clk 0:03:00]}  h5 {[%clk 0:02:52]} 5. c4 {[%clk 0:03:00]}  e6 {[%clk 0:02:51]} 6. Nc3 {[%clk 0:02:58]}  dxc4 {[%clk 0:02:48]} 7. Bxc4 {[%clk 0:02:58]}  Ne7 {[%clk 0:02:47]} 8. Nge2 {[%clk 0:02:57]}  Nd5 {[%clk 0:02:44]} 9. Ng3 {[%clk 0:02:49]}  Bg6 {[%clk 0:02:42]} 10. Nxd5 {[%clk 0:02:30]}  cxd5 {[%clk 0:02:40]} 11. Bb5+ {[%clk 0:02:30]}  Nc6 {[%clk 0:02:39]} 12. O-O {[%clk 0:02:16]}  Qxh4 {[%clk 0:02:33]} 13. Qa4 {[%clk 0:01:47]}  Rc8 {[%clk 0:01:52]} 14. Be3 {[%clk 0:01:41]}  Be7 {[%clk 0:01:47]} 15. Rac1 {[%clk 0:01:28]}  O-O {[%clk 0:01:34]} 16. Bxc6 {[%clk 0:01:18]}  bxc6 {[%clk 0:01:34]} 17. Rxc6 {[%clk 0:01:19]}  Qg4 {[%clk 0:01:27]} 18. Rxc8 {[%clk 0:01:06]}  Rxc8 {[%clk 0:01:26]} 19. Qd7 {[%clk 0:01:06]}  Rc2 {[%clk 0:01:12]} 20. Qxe7 {[%clk 0:01:01]}  h4 {[%clk 0:01:12]} 21. Nh1 {[%clk 0:00:55]}  h3 {[%clk 0:01:04]} 22. Qd8+ {[%clk 0:00:46]}  Kh7 {[%clk 0:01:03]} 23. Qg5 {[%clk 0:00:45]}  Qxg5 {[%clk 0:00:55]} 24. Bxg5 {[%clk 0:00:46]}  hxg2 {[%clk 0:00:53]} 25. Kxg2 {[%clk 0:00:45]}  Be4+ {[%clk 0:00:53]} 26. Kg1 {[%clk 0:00:45]}  Rxb2 {[%clk 0:00:52]} 27. Ng3 {[%clk 0:00:42]}  Bf3 {[%clk 0:00:49]} 28. Ra1 {[%clk 0:00:39]}  a5 {[%clk 0:00:45]} 29. Be3 {[%clk 0:00:38]}  a4 {[%clk 0:00:44]} 30. Nf1 {[%clk 0:00:39]}  Kg6 {[%clk 0:00:38]} 31. Nd2 {[%clk 0:00:38]}  Bg4 {[%clk 0:00:35]} 32. a3 {[%clk 0:00:37]}  Rb8 {[%clk 0:00:34]} 33. Rb1 {[%clk 0:00:36]}  Rc8 {[%clk 0:00:33]} 34. Rb4 {[%clk 0:00:35]}  Bd1 {[%clk 0:00:27]} 35. Kh2 {[%clk 0:00:32]}  Kf5 {[%clk 0:00:26]} 36. Kg3 {[%clk 0:00:32]}  g5 {[%clk 0:00:26]} 37. Rb7 {[%clk 0:00:31]}  Rf8 {[%clk 0:00:24]} 38. Nf3 {[%clk 0:00:31]}  g4 {[%clk 0:00:23]} 39. Nh4+ {[%clk 0:00:29]}  Ke4 {[%clk 0:00:20]} 40. Rb1 {[%clk 0:00:28]}  Bc2 {[%clk 0:00:18]} 41. Re1 {[%clk 0:00:27]}  Kd3 {[%clk 0:00:18]} 42. Kxg4 {[%clk 0:00:24]}  Rg8+ {[%clk 0:00:17]} 43. Bg5 {[%clk 0:00:24]}  Kxd4 {[%clk 0:00:16]} 44. Nf3+ {[%clk 0:00:24]}  Kc5 {[%clk 0:00:14]} 45. Kf4 {[%clk 0:00:23]}  Bf5 {[%clk 0:00:13]} 46. Be7+ {[%clk 0:00:23]}  Kc6 {[%clk 0:00:13]} 47. Rc1+ {[%clk 0:00:23]}  Kd7 {[%clk 0:00:13]} 48. Bb4 {[%clk 0:00:22]}  Rg4+ {[%clk 0:00:13]} 49. Ke3 {[%clk 0:00:22]}  Re4+ {[%clk 0:00:13]} 50. Kd2 {[%clk 0:00:21]}  Bg4 {[%clk 0:00:12]} 51. Rc3 {[%clk 0:00:20]}  Rf4 {[%clk 0:00:11]} 52. Ke2 {[%clk 0:00:19]}  d4 {[%clk 0:00:09]} 53. Rd3 {[%clk 0:00:19]}  Kc6 {[%clk 0:00:08]} 54. Bd2 {[%clk 0:00:18]}  Re4+ {[%clk 0:00:08]} 55. Kf1 {[%clk 0:00:17]}  Kd5 {[%clk 0:00:08]} 56. Bc3 {[%clk 0:00:16]}  Bh3+ {[%clk 0:00:07]} 57. Kg1 {[%clk 0:00:15]}  Kc4 {[%clk 0:00:08]} 58. Rxd4+ {[%clk 0:00:15]}  Rxd4 {[%clk 0:00:07]} 59. Bxd4 {[%clk 0:00:16]}  Kb3 {[%clk 0:00:08]} 60. Bc5 {[%clk 0:00:16]}  Bf5 {[%clk 0:00:07]} 61. Ng5 {[%clk 0:00:17]}  Bg6 {[%clk 0:00:06]} 62. Kh2 {[%clk 0:00:17]}  Kc4 {[%clk 0:00:06]} 63. Bd6 {[%clk 0:00:17]}  Kd5 {[%clk 0:00:06]} 64. Bc7 {[%clk 0:00:17]}  Kd4 {[%clk 0:00:05]} 65. Kg3 {[%clk 0:00:17]}  Kd5 {[%clk 0:00:06]} 66. f4 {[%clk 0:00:17]}  Kd4 {[%clk 0:00:05]} 67. Kf3 {[%clk 0:00:17]}  Kc4 {[%clk 0:00:05]} 68. Ke3 {[%clk 0:00:17]}  Kb3 {[%clk 0:00:06]} 69. Bd6 {[%clk 0:00:17]}  f6 {[%clk 0:00:06]} 70. exf6 {[%clk 0:00:17]}  Bf5 {[%clk 0:00:06]} 71. f7 {[%clk 0:00:17]} 1-0


[Site "https://www.chess.com"]

[Event "Titled Tuesday Blitz February 15 Early 2022"]
[White "Politov, Pavel Y."]
[Black "Stepanencu, Nicodim-Cosmin"]
[WhiteFideId "24110515"]
[BlackFideId "1256220"]
[WhiteElo "2090"]
[BlackElo "1809"]
[Result "0-1"]
[Round "04"]
[TimeControl "180+1"]
[Date "2022.02.15"]
[WhiteClock "0:00:01"]
[BlackClock "0:00:03"]

1. e4 {[%clk 0:03:00]}  a6 {[%clk 0:02:57]} 2. d4 {[%clk 0:02:59]}  b5 {[%clk 0:02:57]} 3. Bd3 {[%clk 0:02:56]}  Bb7 {[%clk 0:02:57]} 4. Ne2 {[%clk 0:02:55]}  e6 {[%clk 0:02:57]} 5. f3 {[%clk 0:02:53]}  c5 {[%clk 0:02:56]} 6. c3 {[%clk 0:02:53]}  Nf6 {[%clk 0:02:50]} 7. Be3 {[%clk 0:02:51]}  Qc7 {[%clk 0:02:48]} 8. Nd2 {[%clk 0:02:46]}  d6 {[%clk 0:02:42]} 9. O-O {[%clk 0:02:43]}  Nbd7 {[%clk 0:02:42]} 10. a4 {[%clk 0:02:27]}  c4 {[%clk 0:02:30]} 11. Bc2 {[%clk 0:02:25]}  Be7 {[%clk 0:02:25]} 12. Ng3 {[%clk 0:02:17]}  h5 {[%clk 0:02:17]} 13. Ne2 {[%clk 0:01:54]}  Nb6 {[%clk 0:01:44]} 14. a5 {[%clk 0:01:45]}  Nbd7 {[%clk 0:01:35]} 15. Qe1 {[%clk 0:01:33]}  h4 {[%clk 0:01:33]} 16. Qf2 {[%clk 0:01:31]}  e5 {[%clk 0:01:08]} 17. d5 {[%clk 0:01:30]}  Nh5 {[%clk 0:01:03]} 18. g3 {[%clk 0:01:09]}  hxg3 {[%clk 0:01:00]} 19. hxg3 {[%clk 0:01:09]}  g5 {[%clk 0:00:57]} 20. Kg2 {[%clk 0:01:02]}  f5 {[%clk 0:00:57]} 21. Rh1 {[%clk 0:00:51]}  O-O-O {[%clk 0:00:54]} 22. Rh2 {[%clk 0:00:31]}  f4 {[%clk 0:00:47]} 23. Bb6 {[%clk 0:00:20]}  Nxb6 {[%clk 0:00:46]} 24. axb6 {[%clk 0:00:20]}  Qd7 {[%clk 0:00:44]} 25. g4 {[%clk 0:00:18]}  Nf6 {[%clk 0:00:42]} 26. b4 {[%clk 0:00:12]}  Rxh2+ {[%clk 0:00:19]} 27. Kxh2 {[%clk 0:00:12]}  Rh8+ {[%clk 0:00:07]} 28. Kg2 {[%clk 0:00:12]}  Nxg4 {[%clk 0:00:07]} 29. fxg4 {[%clk 0:00:07]}  Qxg4+ {[%clk 0:00:08]} 30. Kf1 {[%clk 0:00:07]}  Rh1+ {[%clk 0:00:05]} 31. Ng1 {[%clk 0:00:07]}  Qh3+ {[%clk 0:00:02]} 32. Qg2 {[%clk 0:00:04]}  Qh5 {[%clk 0:00:02]} 33. Nf3 {[%clk 0:00:02]}  g4 {[%clk 0:00:02]} 34. Ne1 {[%clk 0:00:01]}  f3 {[%clk 0:00:02]} 35. Nxf3 {[%clk 0:00:01]}  gxf3 {[%clk 0:00:03]} 36. Qf2 {[%clk 0:00:01]}  Bh4 {[%clk 0:00:03]} 0-1


[Site "https://www.chess.com"]

[Event "Titled Tuesday Blitz February 15 Early 2022"]
[White "Prohorov, Olexandr"]
[Black "Baches Garcia, Guillermo"]
[WhiteFideId "14105578"]
[BlackFideId "2209764"]
[WhiteElo "1993"]
[BlackElo "2454"]
[Result "0-1"]
[Round "04"]
[TimeControl "180+1"]
[Date "2022.02.15"]
[WhiteClock "0:00:34"]
[BlackClock "0:00:46"]

1. d4 {[%clk 0:02:59]}  Nf6 {[%clk 0:02:58]} 2. Bg5 {[%clk 0:02:57]}  e6 {[%clk 0:02:58]} 3. e4 {[%clk 0:02:51]}  h6 {[%clk 0:02:58]} 4. Bxf6 {[%clk 0:02:50]}  Qxf6 {[%clk 0:02:59]} 5. Nc3 {[%clk 0:02:51]}  d6 {[%clk 0:02:57]} 6. Bd3 {[%clk 0:02:47]}  c6 {[%clk 0:02:57]} 7. Nge2 {[%clk 0:02:45]}  e5 {[%clk 0:02:54]} 8. d5 {[%clk 0:02:39]}  Qd8 {[%clk 0:02:47]} 9. O-O {[%clk 0:02:37]}  Be7 {[%clk 0:02:46]} 10. f4 {[%clk 0:02:23]}  O-O {[%clk 0:02:43]} 11. Qe1 {[%clk 0:02:17]}  Nd7 {[%clk 0:02:28]} 12. Rd1 {[%clk 0:02:04]}  Bh4 {[%clk 0:02:15]} 13. g3 {[%clk 0:02:00]}  Bf6 {[%clk 0:02:13]} 14. Qf2 {[%clk 0:01:53]}  Qb6 {[%clk 0:02:05]} 15. Qxb6 {[%clk 0:01:37]}  axb6 {[%clk 0:01:59]} 16. Kg2 {[%clk 0:01:21]}  b5 {[%clk 0:01:53]} 17. a3 {[%clk 0:01:13]}  Nc5 {[%clk 0:01:50]} 18. Nc1 {[%clk 0:01:07]}  Nxd3 {[%clk 0:01:33]} 19. Nxd3 {[%clk 0:01:05]}  exf4 {[%clk 0:01:14]} 20. gxf4 {[%clk 0:01:03]}  Bxc3 {[%clk 0:01:14]} 21. bxc3 {[%clk 0:01:00]}  Rxa3 {[%clk 0:01:14]} 22. dxc6 {[%clk 0:00:58]}  Rxc3 {[%clk 0:01:02]} 23. Nb4 {[%clk 0:00:47]}  bxc6 {[%clk 0:00:53]} 24. Rxd6 {[%clk 0:00:45]}  Bh3+ {[%clk 0:00:52]} 25. Kf2 {[%clk 0:00:44]}  Bxf1 {[%clk 0:00:52]} 26. Kxf1 {[%clk 0:00:45]}  c5 {[%clk 0:00:48]} 27. Nd5 {[%clk 0:00:40]}  Rxc2 {[%clk 0:00:48]} 28. e5 {[%clk 0:00:34]}  Ra8 {[%clk 0:00:46]} 0-1


[Site "https://www.chess.com"]

[Event "Titled Tuesday Blitz February 15 Early 2022"]
[White "Przybylski, Wojciech"]
[Black "Namitbir Singh Walia"]
[WhiteFideId "1117599"]
[BlackFideId "35071068"]
[WhiteElo "2133"]
[BlackElo "1479"]
[Result "1-0"]
[Round "04"]
[TimeControl "180+1"]
[Date "2022.02.15"]
[WhiteClock "0:00:05"]
[BlackClock "0:00:04"]

1. e4 {[%clk 0:03:00]}  c5 {[%clk 0:02:58]} 2. Nf3 {[%clk 0:03:00]}  e6 {[%clk 0:02:58]} 3. d4 {[%clk 0:03:00]}  cxd4 {[%clk 0:02:58]} 4. Nxd4 {[%clk 0:03:01]}  a6 {[%clk 0:02:55]} 5. Bd3 {[%clk 0:03:01]}  Bc5 {[%clk 0:02:53]} 6. Nb3 {[%clk 0:03:01]}  Be7 {[%clk 0:02:52]} 7. Qg4 {[%clk 0:03:00]}  g6 {[%clk 0:02:51]} 8. O-O {[%clk 0:02:59]}  Nc6 {[%clk 0:02:49]} 9. f4 {[%clk 0:02:57]}  Nf6 {[%clk 0:02:39]} 10. Qe2 {[%clk 0:02:52]}  d5 {[%clk 0:02:37]} 11. Nc3 {[%clk 0:02:42]}  O-O {[%clk 0:02:18]} 12. e5 {[%clk 0:02:38]}  Nd7 {[%clk 0:02:16]} 13. Bd2 {[%clk 0:02:36]}  b5 {[%clk 0:02:01]} 14. Rae1 {[%clk 0:02:34]}  Re8 {[%clk 0:01:57]} 15. Kh1 {[%clk 0:02:30]}  Bb7 {[%clk 0:01:50]} 16. Qg4 {[%clk 0:02:24]}  Bf8 {[%clk 0:01:40]} 17. Ne2 {[%clk 0:02:20]}  Rc8 {[%clk 0:01:28]} 18. a3 {[%clk 0:02:17]}  Bg7 {[%clk 0:01:16]} 19. Ned4 {[%clk 0:02:12]}  Nxd4 {[%clk 0:01:13]} 20. Ba5 {[%clk 0:01:58]}  Qe7 {[%clk 0:00:50]} 21. Bb4 {[%clk 0:01:58]}  Qd8 {[%clk 0:00:43]} 22. Ba5 {[%clk 0:01:58]}  Qe7 {[%clk 0:00:42]} 23. Nxd4 {[%clk 0:01:58]}  Nc5 {[%clk 0:00:40]} 24. Bb4 {[%clk 0:01:57]}  Qc7 {[%clk 0:00:37]} 25. Bc3 {[%clk 0:01:28]}  Na4 {[%clk 0:00:35]} 26. Ne2 {[%clk 0:01:22]}  Nxc3 {[%clk 0:00:32]} 27. Nxc3 {[%clk 0:01:19]}  Qc5 {[%clk 0:00:31]} 28. Qe2 {[%clk 0:01:07]}  Bc6 {[%clk 0:00:30]} 29. Na2 {[%clk 0:01:06]}  Bd7 {[%clk 0:00:28]} 30. Nc1 {[%clk 0:01:06]}  a5 {[%clk 0:00:27]} 31. Nb3 {[%clk 0:01:05]}  Qb6 {[%clk 0:00:26]} 32. Qf2 {[%clk 0:00:57]}  Qc7 {[%clk 0:00:26]} 33. Nd4 {[%clk 0:00:54]}  Rb8 {[%clk 0:00:24]} 34. b4 {[%clk 0:00:47]}  Bf8 {[%clk 0:00:22]} 35. Rb1 {[%clk 0:00:46]}  axb4 {[%clk 0:00:20]} 36. axb4 {[%clk 0:00:45]}  Rec8 {[%clk 0:00:20]} 37. h4 {[%clk 0:00:40]}  h5 {[%clk 0:00:19]} 38. Rb3 {[%clk 0:00:37]}  Qa7 {[%clk 0:00:17]} 39. Kh2 {[%clk 0:00:32]}  Be7 {[%clk 0:00:16]} 40. Kh3 {[%clk 0:00:31]}  Bd8 {[%clk 0:00:16]} 41. c3 {[%clk 0:00:21]}  Bb6 {[%clk 0:00:15]} 42. Qb2 {[%clk 0:00:21]}  Bxd4 {[%clk 0:00:12]} 43. cxd4 {[%clk 0:00:20]}  Ra8 {[%clk 0:00:12]} 44. Kg3 {[%clk 0:00:18]}  Qa2 {[%clk 0:00:11]} 45. Rb1 {[%clk 0:00:18]}  Qxb2 {[%clk 0:00:10]} 46. R1xb2 {[%clk 0:00:18]}  Ra1 {[%clk 0:00:10]} 47. Kf3 {[%clk 0:00:18]}  Kf8 {[%clk 0:00:10]} 48. g3 {[%clk 0:00:18]}  Ke7 {[%clk 0:00:10]} 49. Ke3 {[%clk 0:00:16]}  Re1+ {[%clk 0:00:09]} 50. Kd2 {[%clk 0:00:14]}  Rg1 {[%clk 0:00:09]} 51. Be2 {[%clk 0:00:14]}  Ra1 {[%clk 0:00:06]} 52. Rb1 {[%clk 0:00:14]}  Rxb1 {[%clk 0:00:05]} 53. Rxb1 {[%clk 0:00:13]}  Ra8 {[%clk 0:00:06]} 54. Bd3 {[%clk 0:00:13]}  Kd8 {[%clk 0:00:05]} 55. Bc2 {[%clk 0:00:12]}  Bc6 {[%clk 0:00:05]} 56. Bb3 {[%clk 0:00:13]}  Kd7 {[%clk 0:00:06]} 57. Rc1 {[%clk 0:00:13]}  Ra7 {[%clk 0:00:06]} 58. Kc3 {[%clk 0:00:13]}  Rb7 {[%clk 0:00:06]} 59. Kb2 {[%clk 0:00:13]}  Ra7 {[%clk 0:00:06]} 60. Rg1 {[%clk 0:00:13]}  Ra6 {[%clk 0:00:06]} 61. g4 {[%clk 0:00:13]}  hxg4 {[%clk 0:00:06]} 62. Rxg4 {[%clk 0:00:13]}  Ra8 {[%clk 0:00:07]} 63. Rg1 {[%clk 0:00:09]}  Rh8 {[%clk 0:00:06]} 64. Rh1 {[%clk 0:00:09]}  Kc7 {[%clk 0:00:06]} 65. Kc3 {[%clk 0:00:09]}  Rh5 {[%clk 0:00:06]} 66. Kd2 {[%clk 0:00:09]}  Rf5 {[%clk 0:00:06]} 67. Ke3 {[%clk 0:00:09]}  Rh5 {[%clk 0:00:06]} 68. Bd1 {[%clk 0:00:09]}  Rh6 {[%clk 0:00:06]} 69. Be2 {[%clk 0:00:08]}  Kb6 {[%clk 0:00:06]} 70. h5 {[%clk 0:00:07]}  Kc7 {[%clk 0:00:05]} 71. Bf3 {[%clk 0:00:06]}  gxh5 {[%clk 0:00:05]} 72. Rxh5 {[%clk 0:00:06]}  Rxh5 {[%clk 0:00:05]} 73. Bxh5 {[%clk 0:00:06]}  Be8 {[%clk 0:00:05]} 74. f5 {[%clk 0:00:06]}  Kd7 {[%clk 0:00:03]} 75. f6 {[%clk 0:00:04]}  Kc7 {[%clk 0:00:03]} 76. Kf4 {[%clk 0:00:05]}  Kc6 {[%clk 0:00:03]} 77. Kg5 {[%clk 0:00:05]}  Kd7 {[%clk 0:00:03]} 78. Kh6 {[%clk 0:00:05]}  Kd8 {[%clk 0:00:04]} 79. Kg7 {[%clk 0:00:05]} 1-0


[Site "https://www.chess.com"]

[Event "Titled Tuesday Blitz February 15 Early 2022"]
[White "Ronka, Erik"]
[Black "Rodchenkov, Vitaly"]
[WhiteFideId "505080"]
[BlackFideId "4152964"]
[WhiteElo "2264"]
[BlackElo "2337"]
[Result "0-1"]
[Round "04"]
[TimeControl "180+1"]
[Date "2022.02.15"]
[WhiteClock "0:00:14"]
[BlackClock "0:01:09"]

1. d4 {[%clk 0:03:00]}  Nf6 {[%clk 0:02:59]} 2. Nf3 {[%clk 0:03:01]}  b6 {[%clk 0:02:59]} 3. g3 {[%clk 0:03:01]}  Bb7 {[%clk 0:02:59]} 4. Bg2 {[%clk 0:03:02]}  e6 {[%clk 0:03:00]} 5. O-O {[%clk 0:03:02]}  Be7 {[%clk 0:03:00]} 6. c4 {[%clk 0:03:03]}  O-O {[%clk 0:03:00]} 7. Nc3 {[%clk 0:03:03]}  Na6 {[%clk 0:03:01]} 8. Ne5 {[%clk 0:02:56]}  Bxg2 {[%clk 0:02:59]} 9. Kxg2 {[%clk 0:02:57]}  Qc8 {[%clk 0:02:56]} 10. e4 {[%clk 0:02:55]}  Qb7 {[%clk 0:02:56]} 11. f3 {[%clk 0:02:55]}  d6 {[%clk 0:02:56]} 12. Nd3 {[%clk 0:02:54]}  c6 {[%clk 0:02:51]} 13. Qe2 {[%clk 0:02:50]}  Nc7 {[%clk 0:02:51]} 14. b3 {[%clk 0:02:42]}  b5 {[%clk 0:02:51]} 15. c5 {[%clk 0:02:35]}  dxc5 {[%clk 0:02:33]} 16. Nxc5 {[%clk 0:02:36]}  Bxc5 {[%clk 0:02:33]} 17. dxc5 {[%clk 0:02:37]}  e5 {[%clk 0:02:31]} 18. Bg5 {[%clk 0:02:33]}  Nd7 {[%clk 0:02:29]} 19. Rad1 {[%clk 0:02:28]}  Ne6 {[%clk 0:02:29]} 20. Be7 {[%clk 0:02:07]}  Rfe8 {[%clk 0:02:23]} 21. Bd6 {[%clk 0:02:06]}  Nexc5 {[%clk 0:02:20]} 22. b4 {[%clk 0:02:04]}  Ne6 {[%clk 0:02:19]} 23. Qe3 {[%clk 0:01:58]}  a5 {[%clk 0:02:17]} 24. a3 {[%clk 0:01:57]}  axb4 {[%clk 0:02:17]} 25. axb4 {[%clk 0:01:58]}  Ra3 {[%clk 0:02:17]} 26. Rd3 {[%clk 0:01:45]}  Nb6 {[%clk 0:02:16]} 27. Qe2 {[%clk 0:01:33]}  Nc4 {[%clk 0:02:15]} 28. Bc5 {[%clk 0:01:11]}  Nd4 {[%clk 0:02:02]} 29. Qf2 {[%clk 0:00:57]}  Rea8 {[%clk 0:01:56]} 30. Bxd4 {[%clk 0:00:53]}  exd4 {[%clk 0:01:56]} 31. Qxd4 {[%clk 0:00:54]}  h6 {[%clk 0:01:55]} 32. h4 {[%clk 0:00:52]}  Qe7 {[%clk 0:01:54]} 33. Rfd1 {[%clk 0:00:50]}  Qxb4 {[%clk 0:01:53]} 34. e5 {[%clk 0:00:41]}  c5 {[%clk 0:01:36]} 35. Qe4 {[%clk 0:00:32]}  Re8 {[%clk 0:01:27]} 36. f4 {[%clk 0:00:27]}  Rxc3 {[%clk 0:01:25]} 37. Rd8 {[%clk 0:00:26]}  Ne3+ {[%clk 0:01:13]} 38. Qxe3 {[%clk 0:00:15]}  Rxe3 {[%clk 0:01:12]} 39. Rxe8+ {[%clk 0:00:15]}  Kh7 {[%clk 0:01:12]} 40. h5 {[%clk 0:00:16]}  Qe4+ {[%clk 0:01:10]} 41. Kh3 {[%clk 0:00:15]}  Qf3 {[%clk 0:01:09]} 42. Rg1 {[%clk 0:00:14]}  Qxh5+ {[%clk 0:01:09]} 0-1


[Site "https://www.chess.com"]

[Event "Titled Tuesday Blitz February 15 Early 2022"]
[White "Rychagov, Andrey"]
[Black "Al Mukhaini, Shima"]
[WhiteFideId "4119932"]
[BlackFideId "22005854"]
[WhiteElo "2500"]
[BlackElo "2400"]
[Result "1/2-1/2"]
[Round "04"]
[TimeControl "180+1"]
[Date "2022.02.15"]
[WhiteClock "0:00:22"]
[BlackClock "0:00:04"]

1. d4 {[%clk 0:02:58]}  f5 {[%clk 0:02:58]} 2. Nf3 {[%clk 0:02:55]}  Nf6 {[%clk 0:02:58]} 3. Bf4 {[%clk 0:02:55]}  g6 {[%clk 0:02:57]} 4. e3 {[%clk 0:02:54]}  Bg7 {[%clk 0:02:58]} 5. Bc4 {[%clk 0:02:54]}  e6 {[%clk 0:02:57]} 6. h3 {[%clk 0:02:52]}  O-O {[%clk 0:02:55]} 7. O-O {[%clk 0:02:52]}  Nc6 {[%clk 0:02:52]} 8. Nbd2 {[%clk 0:02:44]}  h6 {[%clk 0:02:51]} 9. Bh2 {[%clk 0:02:42]}  Kh7 {[%clk 0:02:51]} 10. Re1 {[%clk 0:02:39]}  Ne4 {[%clk 0:02:35]} 11. Bd3 {[%clk 0:02:37]}  d5 {[%clk 0:02:34]} 12. c4 {[%clk 0:02:37]}  Ne7 {[%clk 0:02:31]} 13. Be5 {[%clk 0:02:36]}  c6 {[%clk 0:02:28]} 14. Bxg7 {[%clk 0:02:34]}  Kxg7 {[%clk 0:02:28]} 15. Ne5 {[%clk 0:02:34]}  Ng8 {[%clk 0:02:19]} 16. Ndf3 {[%clk 0:02:16]}  Ngf6 {[%clk 0:02:09]} 17. Rc1 {[%clk 0:02:11]}  Bd7 {[%clk 0:02:04]} 18. Re2 {[%clk 0:02:09]}  Be8 {[%clk 0:02:04]} 19. Rec2 {[%clk 0:01:53]}  g5 {[%clk 0:02:02]} 20. Ne1 {[%clk 0:01:53]}  Bh5 {[%clk 0:01:59]} 21. f3 {[%clk 0:01:53]}  Nd6 {[%clk 0:01:51]} 22. Be2 {[%clk 0:01:48]}  Nf7 {[%clk 0:01:43]} 23. g4 {[%clk 0:01:44]}  Bg6 {[%clk 0:01:35]} 24. Nxg6 {[%clk 0:01:43]}  Kxg6 {[%clk 0:01:36]} 25. Bd3 {[%clk 0:01:44]}  Qd7 {[%clk 0:01:31]} 26. Rg2 {[%clk 0:01:42]}  Kg7 {[%clk 0:01:26]} 27. gxf5 {[%clk 0:01:34]}  exf5 {[%clk 0:01:25]} 28. Qc2 {[%clk 0:01:35]}  Nd6 {[%clk 0:01:17]} 29. c5 {[%clk 0:01:34]}  Nc4 {[%clk 0:01:00]} 30. Bxc4 {[%clk 0:01:24]}  dxc4 {[%clk 0:00:59]} 31. Qxc4 {[%clk 0:01:24]}  Rae8 {[%clk 0:00:59]} 32. Qd3 {[%clk 0:01:03]}  Nd5 {[%clk 0:00:57]} 33. Nc2 {[%clk 0:01:00]}  f4 {[%clk 0:00:54]} 34. e4 {[%clk 0:00:59]}  Nf6 {[%clk 0:00:39]} 35. Kh2 {[%clk 0:01:00]}  Nh5 {[%clk 0:00:36]} 36. Na3 {[%clk 0:00:52]}  Ng3 {[%clk 0:00:32]} 37. Nc4 {[%clk 0:00:52]}  Re7 {[%clk 0:00:24]} 38. Nd6 {[%clk 0:00:51]}  Rf6 {[%clk 0:00:21]} 39. e5 {[%clk 0:00:50]}  Rf8 {[%clk 0:00:17]} 40. Rcg1 {[%clk 0:00:49]}  Ref7 {[%clk 0:00:14]} 41. Nxf7 {[%clk 0:00:48]}  Qxf7 {[%clk 0:00:14]} 42. b3 {[%clk 0:00:42]}  Nf5 {[%clk 0:00:12]} 43. Qe4 {[%clk 0:00:30]}  Qd5 {[%clk 0:00:13]} 44. Qxd5 {[%clk 0:00:29]}  cxd5 {[%clk 0:00:14]} 45. Re2 {[%clk 0:00:29]}  Nxd4 {[%clk 0:00:12]} 46. Rf2 {[%clk 0:00:28]}  Ne6 {[%clk 0:00:12]} 47. Rd1 {[%clk 0:00:28]}  d4 {[%clk 0:00:11]} 48. b4 {[%clk 0:00:26]}  Rd8 {[%clk 0:00:09]} 49. Rc2 {[%clk 0:00:25]}  Rd5 {[%clk 0:00:08]} 50. Kg2 {[%clk 0:00:23]}  Rxe5 {[%clk 0:00:07]} 51. Kf2 {[%clk 0:00:24]}  Kf6 {[%clk 0:00:07]} 52. Re2 {[%clk 0:00:23]}  Rd5 {[%clk 0:00:06]} 53. Rde1 {[%clk 0:00:23]}  Nc7 {[%clk 0:00:07]} 54. Re7 {[%clk 0:00:22]}  Nb5 {[%clk 0:00:06]} 55. R1e6+ {[%clk 0:00:22]}  Kf5 {[%clk 0:00:06]} 56. Rxh6 {[%clk 0:00:23]}  d3 {[%clk 0:00:05]} 57. Rh8 {[%clk 0:00:21]}  d2 {[%clk 0:00:04]} 58. Rf8+ {[%clk 0:00:21]}  Kg6 {[%clk 0:00:05]} 59. Rg8+ {[%clk 0:00:20]}  Kf6 {[%clk 0:00:05]} 60. Rgg7 {[%clk 0:00:20]}  d1=Q {[%clk 0:00:04]} 61. Rgf7+ {[%clk 0:00:20]}  Kg6 {[%clk 0:00:05]} 62. Rg7+ {[%clk 0:00:21]}  Kf6 {[%clk 0:00:04]} 63. Rgf7+ {[%clk 0:00:21]}  Kg6 {[%clk 0:00:04]} 64. Rg7+ {[%clk 0:00:21]}  Kh6 {[%clk 0:00:04]} 65. Rh7+ {[%clk 0:00:21]}  Kg6 {[%clk 0:00:04]} 66. Rhg7+ {[%clk 0:00:22]} 1/2-1/2


[Site "https://www.chess.com"]